{"text_format":"3","workbook":"xlsx","n_sheets":4,"sheets":["1 Försättssida","2 Specifikation","Information","Admin"],"not_rendered":{"images":1,"defined_names":26},"read":"whole","date_system":"1900"}

{"sheet":"1 Försättssida","index":0,"n_rows":24,"n_cols":1,"rows_kept":24}
{"$rows_empty":11}
["Avropsförfrågan - Förnyad konkurrensutsättning "]
["från Statens inköpscentrals ramavtal inom området "]
[" Programvaror och tjänster Systemutveckling "]
[]
["23.3-5559-17 "]
[]
[]
[]
[]
["Avropsblankett"]
[]
[]
["1.2"]

{"sheet":"2 Specifikation","index":1,"n_rows":175,"n_cols":33,"rows_kept":175,"merged":[[2,1,2,4],[2,10,2,12],[2,14,2,17],[3,1,4,8],[3,10,4,17],[5,1,5,8],[7,1,7,8],[8,1,8,8],[9,1,9,6],[9,7,9,8],[9,10,9,15],[9,16,9,17],[10,1,10,6],[10,7,10,8],[10,10,10,15],[10,16,10,17],[11,1,11,3],[11,4,11,6],[11,7,11,8],[11,10,11,13],[11,14,11,17],[12,1,12,3],[12,4,12,6],[12,7,12,8],[12,10,12,13],[12,14,12,17],[13,1,13,6],[13,7,13,8],[13,10,13,13],[13,14,13,15],[13,16,13,17],[14,1,14,6],[14,7,14,8],[14,10,14,13],[14,14,14,15],[14,16,14,17],[15,1,15,3],[15,4,15,6],[15,7,15,8],[15,10,15,12],[15,13,15,15],[15,16,15,17],[16,1,16,3],[16,4,16,6],[16,7,16,8],[16,10,16,12],[16,13,16,15],[16,16,16,17],[17,1,17,3],[17,4,17,8],[17,10,17,12],[17,13,17,17],[18,1,18,3],[18,4,18,8],[18,10,18,12],[18,13,18,17],[21,1,21,8],[21,10,21,13],[22,1,22,8],[23,1,23,8],[24,1,24,8],[27,10,27,13],[29,1,29,8],[33,1,33,8],[33,10,34,17],[37,1,37,4],[39,1,39,2],[39,3,39,4],[39,5,39,6],[40,1,40,2],[40,3,40,4],[40,5,40,6],[42,1,42,5],[43,1,43,5],[43,10,43,14],[44,1,45,8],[44,10,45,17],[47,2,47,6],[47,10,47,14],[48,2,48,6],[48,10,48,14],[49,2,49,3],[49,5,49,6],[51,2,51,6],[51,10,51,14],[52,2,52,6],[52,10,52,14],[53,2,53,3],[53,5,53,6],[55,2,55,6],[55,10,55,14],[56,2,56,6],[56,10,56,14],[57,2,57,3],[57,5,57,6],[59,2,59,6],[59,10,59,14],[60,2,60,6],[60,10,60,14],[61,2,61,3],[61,5,61,6],[65,1,65,5],[66,14,67,17],[67,1,67,8],[69,1,69,8],[70,1,70,8],[71,1,73,8],[71,10,71,15],[72,10,73,16],[76,1,76,8],[77,1,77,8],[78,1,80,8],[78,10,78,15],[79,10,80,16],[82,1,82,8],[83,1,83,8],[84,1,86,8],[84,10,84,15],[85,10,86,16],[89,1,89,13],[90,1,92,3],[90,4,91,7],[90,8,91,8],[92,4,92,7],[93,4,94,8],[95,1,95,7],[95,10,96,17],[96,1,96,7],[97,1,98,5],[97,6,98,6],[97,7,98,7],[97,8,98,8],[97,9,98,9],[97,11,98,12],[97,13,98,13],[97,14,98,16],[99,1,99,5],[99,11,99,12],[99,14,99,16],[100,1,100,5],[100,11,100,12],[100,14,100,16],[101,1,101,5],[101,11,101,12],[101,14,101,16],[102,1,102,5],[102,11,102,12],[102,14,102,16],[104,1,104,3],[104,4,104,7],[108,1,108,8],[109,1,109,8],[109,10,109,14],[109,20,109,25],[110,1,110,7],[110,20,110,21],[110,22,110,23],[110,28,111,28],[111,20,112,21],[111,22,112,23],[112,1,112,8],[112,15,112,16],[113,1,120,8],[113,15,113,16],[113,20,113,21],[113,22,113,23],[114,15,114,16],[115,15,116,16],[115,17,116,17],[116,20,116,21],[116,22,116,23],[117,11,117,12],[118,11,118,13],[118,15,119,16],[118,17,119,17],[122,1,122,5],[124,1,124,8],[124,10,124,13],[125,1,125,8],[126,1,126,8],[127,1,127,8],[130,1,130,8],[130,10,130,13],[131,1,131,8],[132,1,132,8],[133,1,133,8],[137,1,137,17],[138,1,141,17],[144,1,145,16],[144,17,145,17],[148,1,148,8],[149,1,149,8],[150,1,150,8],[151,1,151,8],[152,1,152,8],[153,1,153,8],[156,1,156,8],[156,10,156,16],[157,1,157,8],[157,10,157,16],[158,1,158,8],[158,10,158,16],[159,1,159,8],[159,10,159,16],[160,1,160,8],[160,10,160,16],[161,1,161,8],[161,10,161,16],[165,1,165,7],[165,10,165,17],[166,10,166,17],[167,10,167,17],[168,1,170,8],[168,10,168,17],[170,10,170,17],[171,10,172,17],[174,14,174,17]]}
[{"$nulls":17},{"$f":"\"Avrop nr: \"&E17","v":"Avrop nr: Af-2021/0090 2524"}]
[]
[null,"Avropsförfrågan",{"$nulls":8},"Avropssvar",{"$nulls":3},{"$f":"IF(LarmStatus,\"Minst ett av de obligatoriska kraven är inte ifyllda eller besvarde med Nej\",\"\")","v":{"$error":"#REF!"}},{"$nulls":17},{"$f":"OR(AG4:AG183)","v":{"$error":"#REF!"}}]
[null,"Instruktion till avropande organisation: \nSpara ned blanketten på din dator.\nGulmarkerade rutor fylls i av avropare innan blanketten skickas.\n\nBlanketten bifogas i Tendsign till ramavtalsleverantörer inom aktuellt kompetensområde och region.\nSe vidare \"Vägledning vid avrop\".\n\nAvsnitt markerade med * är obligatoriska att fylla i för blankettens funktionalitet.",{"$nulls":8},"Instruktion till leverantör:\nBlåmarkerade rutor fylls i av leverantören.\nLäs och kontrollera obligatoriska krav.\nReturnera blanketten i Tendsign till avropande organisation (oavsett Ja eller Nej)."]
[]
[]
[null,"Ramavtal: Programvaror och tjänster Systemutveckling 23.3-5559-17 "]
[]
[null,"Uppgifter om avropande organisation",{"$nulls":8},"Uppgifter om Ramavtalsleverantören"]
[null,"Myndighet/Organisation (namn)",{"$nulls":5},"Organisationsnummer",null,null,"Ramavtalsleverantörens namn",{"$nulls":5},"Organisationsnummer"]
[null,"Arbetsförmedlingen",{"$nulls":5},"202100-2114"]
[null,"Postadress",null,null,"Postnummer",null,null,"Postort",null,null,"Kontaktperson",{"$nulls":3},"E-Post"]
[null,"Elektrogatan 4",null,null,"113 99",null,null,"SOLNA"]
[null,"Avdelning, enhet etc",{"$nulls":5},"Fakturaref.",null,null,"Postadress",{"$nulls":3},"Postnummer",null,"Ort"]
[null,"Inköpsavdelningen",{"$nulls":5},"30289"]
[null,"Kontaktperson",null,null,"Ref/diarie -nummer för avropet",null,null,"Ev. kundnummer",null,null,"Telefon",null,null,"Ramavtalsnummer",null,null,"Offertnummer el likn för detta avropssvar"]
[null,"Konsultinköp",null,null,"Af-2021/0090 2524"]
[null,"Telefon",null,null,"E-postadress till kontaktperson",{"$nulls":5},"Avropssvar lämnas Ja/Nej",null,null,"Om Nej, motivering\n(Information ska även skickas till statens inköpscentral)"]
[{"$nulls":4},"ted.buskenstrom@arbetsformedlingen.se"]
[]
[null,"Fakturaadress (om annan än ovan)",{"$nulls":8},"Fakturaadress"]
[null,"Ange ev fakturaadress/erna",{"$nulls":8},"Kravet accepteras?",{"$nulls":20},{"$f":"IF(COUNTA(B23:I25)>0,TRUE,FALSE)","v":true},{"$f":"IF(AND(AF22,O22<>\"Ja\"),TRUE,FALSE)","v":true}]
[null,"\n\n"]
[null,"\n"]
[]
[]
[null,"E-faktura ska ingå i avropet (Ja/Nej)",{"$nulls":8},"Krav på e-faktura"]
[null,"Ja",{"$nulls":8},"Kravet accepteras?",{"$nulls":20},{"$f":"IF(B28=\"Ja\",TRUE,FALSE)","v":true},{"$f":"IF(AND(AF28,O28<>\"Ja\"),TRUE,FALSE)","v":true}]
[null,"Uppgifter om e-faktura"]
[null,"Statliga myndigheter ska hantera alla sina fakturor elektroniskt (e-faktura) enligt ny lagstiftning \n1 april 2019. Alla e-fakturor ska referera till överenskommen referens, exempelvis ett \ninköpsordernummer eller en referens till ett kostnadsställe. Arbetsförmedlingen tillämpar 30 dagars \nbetalningsvillkor från ankomstdatum. Inga expeditions- eller faktureringsavgifter får tillkomma. "]
[]
[]
[null,"Kompetensområde *",{"$nulls":8},"Uppgifter om underleverantör (om aktuellt för denna konsulttjänst)"]
[null,"Systemutveckling"]
[]
[null,null,"Obs att tidsfristen måste vara skälig med hänsyn till avropets karaktär."]
[]
[null,"Leveransavtal"]
[]
[null,"Avtalsstart",null,"Kontraktets längd: t.o.m datum",null,"Förlängningsoption: antal månader/år",null,"Förlägn. mån/år"]
[null,"2022-01-03",null,"2023-01-02",null,{"v":12,"d":"12 "},null,"Mån"]
[]
[null,"Specifikation av konsulttjänst",{"$nulls":29},"Ifylld"]
[null,"Tjänster",{"$nulls":8},"Leverantörens svar",{"$nulls":20},{"$f":"IF(C48=\"Välj Exempelroll\",TRUE,FALSE)","v":false}]
[null,"Om Tjänst på resp rad specificeras ytterligare i bilaga skriv bilagenumret i kolumnen till höger.\nVid stora/komplexa beställningar kan man som alterativ specificera Tjänster i en bilaga. Skriv \"enligt bilaga\" och ange bilagenummer i specifikationen nedan. I detta fall anges \"Antal\" till 1 för hela beställningen. ",{"$nulls":8},"Specificera Tjänsters benämning nedan alternativt skriv \"enligt bilaga\" och bifoga en bilaga med specifikation av Tjänster och tjänster.\nOm Tjänste/tjänste på resp rad specificeras ytterligare i bilaga skriv bilagenumret i kolumnen till höger.",{"$nulls":20},{"$f":"AF44","v":false}]
[{"$nulls":31},{"$f":"AF44","v":false}]
[null,"Tjänst nr 1",{"$nulls":5},"Länk till förklaring Nivå 2-5"]
[null,"Exempelroll","Utvecklare Fullstack med tyngd på backend och goda kunskaper på frontend",{"$nulls":4},"Antal timmar",{"v":4000,"d":"4,000"},null,"Beskrivning av konsulttjänst",{"$nulls":4},"Hänvisning till CV/ bilaga nummer","Pris per timme\n(priset ska anges exkl moms)","Pris totalt",{"$nulls":13},{"$f":"IF(#REF!=\"Välj Exempelroll\",TRUE,FALSE)","v":{"$error":"#REF!"}}]
[null,"Beskrivning av konsulttjänst","Uppdraget innebär att du kommer att utveckla och anpassa nuvarande funktionalitet i våra befintliga systemstöd som stödjer Arbetsförmedlingens upphandlade tjänster. \n\nVi har två användargrupper: interna och externa användare (leverantörer). Utvecklingsarbetet sker löpande och vi arbetar agilt i teamen. Vi har en nära samarbete mellan tjänsteutveckling, utveckling och test  vilket gör att förmåga  att kunna kommunicera lösningsfokuserat med flera parter är viktig..\n\nUtvecklaren implementerar och utvecklar funktionalitet för IT-stöd baserat på krav från verksamheten och en övergripande design som tagits fram av arkitekter.\n\nUtvecklaren genomför enhetstester och integrationstester med andra system. Utvecklaren genomför även felsökning för att lösa komplicerade problem/fel. Vi arbetar också med tredje linjens support. Resultatet skall följa referensarkitekturen och vara förvaltningsvänligt.\n\nI rollen skall du också genom ditt egna arbete inspirera och hjälpa dina kollegor i teamet att anamma principer och verktyg inom agil utveckling för en kulturell och kvalitetsmässig förbättring.\n\nFramgångsfaktorer i rollen är ödmjuk och öppen hållning, och en förmåga att föra dialog och utveckla goda relationer inom och utanför teamet, samt en god kommunikativ förmåga muntligt och skriftligt.",{"$nulls":4},"Nivå (förklaring se flik Information)","Nivå 4",{"$nulls":8},{"$f":"Q49*I48","v":{"v":0,"d":"0.00"}},{"$nulls":13},{"$f":"AF48","v":{"$error":"#REF!"}}]
[null,"Konsult-tjänstens startdatum","2022-01-03",null,"Konsult-tjänstens slutdatum","2023-01-02",null,"Hänvisning till CV/bilaga nr",{"$nulls":23},{"$f":"AF48","v":{"$error":"#REF!"}}]
[null,"Tjänst nr 3",{"$nulls":5},"Länk till förklaring Nivå 2-5"]
[null,"Exempelroll","Välj Exempelroll",{"$nulls":4},"Antal timmar",null,null,"Beskrivning av konsulttjänst",{"$nulls":4},"Hänvisning till CV/ bilaga nummer","Pris per timme\n(priset ska anges exkl moms)","Pris totalt",{"$nulls":13},{"$f":"IF(C56=\"Välj Exempelroll\",TRUE,FALSE)","v":true}]
[null,"Beskrivning av konsulttjänst",{"$nulls":5},"Nivå (förklaring se flik Information)",{"$nulls":9},{"$f":"Q53*I52","v":{"v":0,"d":"0.00"}},{"$nulls":13},{"$f":"AF52","v":true}]
[null,"Konsult-tjänstens startdatum",null,null,"Konsult-tjänstens slutdatum",null,null,"Hänvisning till CV/bilaga nr",{"$nulls":23},{"$f":"AF52","v":true}]
[null,"Tjänst nr 4",{"$nulls":5},"Länk till förklaring Nivå 2-5"]
[null,"Exempelroll","Välj Exempelroll",{"$nulls":4},"Antal timmar",null,null,"Beskrivning av konsulttjänst",{"$nulls":4},"Hänvisning till CV/ bilaga nummer","Pris per timme\n(priset ska anges exkl moms)","Pris totalt",{"$nulls":13},{"$f":"IF(C60=\"Välj Exempelroll\",TRUE,FALSE)","v":true}]
[null,"Beskrivning av konsulttjänst",{"$nulls":5},"Nivå (förklaring se flik Information)",{"$nulls":9},{"$f":"Q57*I56","v":{"v":0,"d":"0.00"}},{"$nulls":13},{"$f":"AF56","v":true}]
[null,"Konsult-tjänstens startdatum",null,null,"Konsult-tjänstens slutdatum",null,null,"Hänvisning till CV/bilaga nr",{"$nulls":23},{"$f":"AF56","v":true}]
[null,"Tjänst nr 5",{"$nulls":5},"Länk till förklaring Nivå 2-5"]
[null,"Exempelroll","Välj Exempelroll",{"$nulls":4},"Antal timmar",null,null,"Beskrivning av konsulttjänst",{"$nulls":4},"Hänvisning till CV/ bilaga nummer","Pris per timme\n(priset ska anges exkl moms)","Pris totalt"]
[null,"Beskrivning av konsulttjänst",{"$nulls":5},"Nivå (förklaring se flik Information)",{"$nulls":9},{"$f":"Q61*I60","v":{"v":0,"d":"0.00"}}]
[null,"Konsult-tjänstens startdatum",null,null,"Konsult-tjänstens slutdatum",null,null,"Hänvisning till CV/bilaga nr"]
[]
[{"$nulls":16},"Totalt pris (utvärderas): ",{"$f":"SUM(R49:R61)","v":{"v":0,"d":"0.00"}}]
[]
[null,"Kravställning"]
[null,"Obligatoriska krav (ska-krav) på Tjänst",{"$nulls":8},"Kravuppfyllnad",{"$nulls":3},{"$f":"IF(LarmStatus,\"Minst ett av de obligatoriska kraven är inte ifyllda eller besvarde med Nej\",\"\")","v":{"$error":"#REF!"}}]
[null,"Uppställning av krav alt. hänvisning till bilaga. För mer information se kravkatalog på www.avropa.se",{"$nulls":28},"Ska-krav finns på denna ",{"$f":"IF(B70<>\"Välj Tjänst\",TRUE,FALSE)","v":true},{"$f":"IF(AND(AF68,Q72<>\"Ja\"),TRUE,FALSE)","v":true}]
[]
[null,"01. Utvecklare Fullstack med tyngd på backend och goda kunskaper på frontend"]
[null,"Enligt specifikation nedan eller referera till bilaga",{"$nulls":8},"Kravuppfyllnad",{"$nulls":5},"Svar"]
[null,"• Konsulten ska ha minst 3 års dokumenterad erfarenhet av .NET-miljö med Visual Studio som förvärvats under de senaste 5 åren.\n• Konsulten ska ha minst 2 års dokumenterad erfarenhet av Java som förvärvats under de senaste 5 åren. \n• Konsulten ska ha minst 2 års dokumenterad erfarenhet inom Frontend-utveckling. \n• Konsulten ska ha erfarenhet av utveckling i stora och komplexa systemmiljöer, från minst 2 uppdrag. \n• Konsulten ska ha ha dokumenterat arbete vid större myndighet i minst 1 år.\n• Konsulten ska ha erfarenhet av agilt arbetssätt och erfarenhet av arbete i ett tvärfunktionellt Scrum-team\n\nAnge referenskund, omfattning och tidsperiod angående ovanstående ska-krav.  Arbetsförmedlingen förbehåller sig rätten att kontakta referenskunden för verifiering av lämnade uppgifter.\n\n• Konsulten ska behärska svenska språket i tal och skrift då dokumentation etc är på svenska.       \n• Om underleverantör används, ange namn och organisationsnummer för aktuell underleverantör.\n• Leverantör ska erbjuda option till förlängning 2023-01-03 - 2024-01-02. För att utnyttja option ska Kunden göra beställning via e-post.\n• Leverantör ska ansvara för att giltig ansvarsförsäkring finns under hela uppdragsperioden.\n• Leverantör ska tillhandahålla mobiltelefon med abonnemang till konsulten under hela uppdragsperioden.\n\nOm behov finns förbehåller sig Arbetsförmedlingen rätt att tillfälligt göra uppehåll i konsultens arbetstid och leverans av tjänst under sommarperioden 15 juni – 15 augusti, samt under övriga större helger såsom exempelvis jul/nyår och påsk. \n",{"$nulls":8},"Kravet uppfyllt?"]
[{"$nulls":10},"Kommentar"]
[{"$nulls":30},"Ska-krav finns på denna ",{"$f":"IF(#REF!<>\"Välj Tjänst\",TRUE,FALSE)","v":{"$error":"#REF!"}},{"$f":"IF(AND(AF74,#REF!<>\"Ja\"),TRUE,FALSE)","v":{"$error":"#REF!"}}]
[]
[]
[null,"Välj Tjänst"]
[null,"Enligt specifikation nedan eller referera till bilaga",{"$nulls":8},"Kravuppfyllnad",{"$nulls":5},"Svar"]
[{"$nulls":10},"Kravet uppfyllt?"]
[{"$nulls":10},"Kommentar"]
[{"$nulls":30},"Ska-krav finns på denna ",{"$f":"IF(B83<>\"Välj Tjänst\",TRUE,FALSE)","v":false},{"$f":"IF(AND(AF81,Q85<>\"Ja\"),TRUE,FALSE)","v":false}]
[]
[null,"Välj Tjänst"]
[null,"Enligt specifikation nedan eller referera till bilaga",{"$nulls":8},"Kravuppfyllnad",{"$nulls":5},"Svar"]
[{"$nulls":10},"Kravet uppfyllt?"]
[{"$nulls":10},"Kommentar"]
[]
[]
[null,"Tilldelningskriterier"]
[null,"Ange tilldelningskriterier och utvärderingskrav (bör-krav) som kommer att tillämpas för att utse vinnande avropssvar\nAvropande organisation har möjlighet att utvärdera på lägsta pris. Då anges 100% vikt på pris. 0% som kriterievikt innebär att kriteriet inte tillämpas vid utvärderingen.\n\nObservera att avropande organisation kan välja om poäng ska utfalla direkt om leverantör svarar att krav uppfylles, eller om poäng ska sättas av avropande organisation först efter en bedömning. Detta anges i ruta till höger om poäng.\n\nSe även kravkatalog i Avropsregler.",{"$nulls":13},"Kravuppfyllnad"]
[null,"1. Pris",null,null,"Utvärdering av det totala sammanräknade priset för uppdraget per år eller månad. \nEventuell ytterligare beskrivning av tilldelningskriteriet:",{"$nulls":3},"Viktning %"]
[]
[{"$nulls":4},"Vid utvärdering av pris tilldelas maximal poäng (30 poäng) till lägst anbudspris, medan övriga anbudspriser tilldelas poäng i förhållande till det lägsta anbudspriset. Detta räknas fram genom formeln: (Lägsta anbudspris/Anbudspris) x Maximal poäng.",{"$nulls":3},{"v":0.3,"d":"30%"}]
[]
[]
[null,"2. Bör-Krav",{"$nulls":6},"Viktning %",null,{"$f":"B96","v":"2. Bör-Krav"}]
[null,"Ange kriterivikt för övriga tilldelingskriterier nedan",{"$nulls":6},{"v":0.7,"d":"70%"}]
[null,"Precisera utvärderingskrav (bör-krav) enligt specifikation nedan eller referera till bilaga.\nAvropande organisation har möjlighet att, vid behov, sätta olika poäng för olika bör-krav och därigenom vikta dessa inbördes.",{"$nulls":4},"Ange poäng för uppfyllt krav","Beskrivning av poängskalan.\n\n\n\nPoängskalan bygger på totalt 70 poäng.","Avropande organisation sätter poäng i utvärderingen efter inkomna avropssvar (Nej/Ja) *",null,"Krav uppfyllt Ja/Nej","Beskrivning av hur leverantören uppfyller kravet eller referera till bilaga",null,"Poäng-bedömn. av avropande organisation (efter man fått in avrops-svar)","Motivering för Bedömning i efterhand",null,null,"Utvärderas"]
[]
[null,"• Konsulten bör ha erfarenhet av Fullstack utveckling.\n• Konsulten bör ha en god förmåga och intresse att sätta sig in i verksamhetskritiska handhavanden och processer.\n• Konsulten bör ha erfarenhet av DevOps.",{"$nulls":4},15,"•Uppfylls mycket väl (15p)\n•Uppfylls väl (10p)\n•Uppfylls delvis (5p)\n•Uppfylls ej (0p)","Ja",{"$nulls":5},"Motivering, i efterhand, skriver avropande organisation här",null,null,{"$f":"IF(I100=\"Nej\",IF(K100=\"Ja\",G100,0),N100)","v":0}]
[null,"Konsulten bör\n• brinna för att lära och hjälpa andra, exempelvis genom par- och mobprogrammering.\n• arbeta efter principen att lättläst kod slår alla andra kvaliteter, och att koden alltid lämnas i ett litet bättre skick vid dagens slut.\n• gilla utmaningen med legacy-kod.\n• söka vägar för att förbättra kvaliteten.\n• vara intresserad av att lära sig om verksamheten.\n• alltid kvalitetssäkra sin kod med enhetstester\n• samarbeta på bästa sätt med andra",{"$nulls":4},25,"•Uppfylls mycket väl (25p)\n•Uppfylls väl (17p)\n•Uppfylls delvis (13p)\n•Uppfylls ej (0p)","Ja",{"$nulls":5},"Motivering, i efterhand, skriver avropande organisation här",null,null,{"$f":"IF(I101=\"Nej\",IF(K101=\"Ja\",G101,0),N101)","v":0}]
[null,"• Konsulten bör ha erfarenhet av teknikerna/verktygen FluentMigrator, TallPDF.NET Webpack, React, Jira, och erfarenhet av att införa och utveckla med hjälp av Continuous Integration och Continuous Deploy.",{"$nulls":4},15,"•Uppfylls mycket väl (15p)\n•Uppfylls väl (10p)\n•Uppfylls delvis (5p)\n•Uppfylls ej (0p)","Ja",{"$nulls":5},"Motivering, i efterhand, skriver avropande organisation här",null,null,{"$f":"IF(I102=\"Nej\",IF(K102=\"Ja\",G102,0),N102)","v":0}]
[null,"• Konsulten bör ha erfarenhet av miljöer som Git, Bitbucket, Jenkins, Nexus\n• Konsulten bör ha erfarenhet av Web.Forms, Web.Api, Windows Service, MVC..NET/C#, PL/SQL, Javascript, jQuery, Bootstrap, Css, Java, Angular, Oracle SQL, Spring boot, Wildfly, Jboss, Selenium",{"$nulls":4},15,"•Uppfylls mycket väl (15p)\n•Uppfylls väl (10p)\n•Uppfylls delvis (5p)\n•Uppfylls ej (0p)","Ja",{"$nulls":5},"Motivering, i efterhand, skriver avropande organisation här",null,null,{"$f":"IF(I103=\"Nej\",IF(K103=\"Ja\",G103,0),N103)","v":0}]
[]
[null,"Summa kriterievikt:",null,null,"(ska alltid summera till 100 %)",{"$nulls":3},{"$f":"I93+I97","v":{"v":1,"d":"100%"}},{"$nulls":7},"Summa poäng  ",{"$f":"SUM(R100:R103)","v":0}]
[]
[null,"Utvärdering"]
[null,"Utvärdering av avropssvar"]
[null,"Förslag på utvärderingsmodell vid användande av fler kriterier än pris"]
[null,"Avropssvar med högsta poängsumman respektive lägsta pris erhåller betyget 10. Övriga avropssvar erhåller betyg i relation till det avropssvar som fått högsta poängsumma respektive offererat lägsta pris. Betygen för respektive kriterie (inkl pris) viktas sedan i förhållande till angiven procentsats för kriteriet. Summan av de viktade betygen utgör avropssvarets totalbetyg.                                                                                                                                                                                                                                                                                                                   Formel för betygssättning av kriterier: (avropssvarets poäng/högsta poäng*10)                                                                                                                                                                                            Formel för betygssättning av pris: (lägsta pris/avropssvarets pris*10)"]
[null,"Avropande organisation kommer att använda denna modell vid utvärdering",{"$nulls":6},"Nej"]
[]
[null,"Avropande organisations beskrivning av den utvärderingsmodell som kommer att tillämpas",{"$nulls":13},"Utvärdering efter avropssvar"]
[null,"Arbetsförmedlingen utvärderar avropssvaren för att hitta det anbud/den konsultprofil som enligt förfrågningsunderlaget bäst uppfyller det efterfrågade behovet. Utvärderingen görs i flera steg:\n\nSteg 1: Först prövas om avropssvaret uppfyller skakraven. Avropssvar som inte uppfyller skakraven kommer inte att beaktas i den fortsatta prövningen. De avropssvar som uppfyller skakraven går vidare till nästa steg i utvärderingen.\n\nSteg 2: I detta steg prövas hur väl avropssvaren uppfyller börkraven. Börkraven poängsätts i avropsblanketten. I utvärderingen kan även intervjuförfarande komma att ingå.\n\nVid utvärdering utdelas maximalt 100 poäng enligt nedan fördelning mellan utvärderingskriterierna kvalitet och pris:\n\nKriterium   Vikt %    Maximal poäng\nKvalitet       70          70\nPris            30          30\n\nVid utvärdering av kvalitet ges varje enskilt börkrav rörande kompetens ett visst antal poäng utifrån uppfyllnad av kravet. Samtliga börkrav rörande kompetens kan tillsammans ge maximalt 60 poäng. Varje börkrav rörande kompetens ges poäng mellan 0 och full poäng (se respektive börkravs maximala poäng i denna avropsförfrågan).\n",{"$nulls":13},"Sammanställning för detta avropssvar"]
[{"$nulls":15},"Poängsumma per kriterium samt angiven kriterievikt"]
[{"$nulls":15},{"$f":"B96","v":"2. Bör-Krav"}]
[]
[{"$nulls":15},{"$f":"R105","v":0},{"$f":"I97","v":{"v":0.7,"d":"70%"}}]
[{"$nulls":15},"1. Totalpris \nför detta avropssvar"]
[]
[{"$nulls":15},{"$f":"R64","v":0},{"$f":"I93","v":{"v":0.3,"d":"30%"}},{"$nulls":14},{"$f":"IF(COUNTA(B126:I128)>0,TRUE,FALSE)","v":false},{"$f":"IF(AND(AF121,O125<>\"Ja\"),TRUE,FALSE)","v":false}]
[]
[null,"Övriga uppgifter"]
[null,"Leveransvillkor",{"$nulls":8},"Leveransvillkor"]
[null,"Ange ev. specifika leveransvillkor alt. hänvisa till avtalsvillkor, tex särskilda överenskommelser mm.",{"$nulls":8},"Kravet accepteras?"]
[]
[{"$nulls":31},{"$f":"IF(COUNTA(B132:I134)>0,TRUE,FALSE)","v":true},{"$f":"IF(AND(AF127,O131<>\"Ja\"),TRUE,FALSE)","v":true}]
[]
[]
[null,"Konsultens placeringsort",{"$nulls":8},"Leveransadress"]
[null,"Ange placeringsort för konsulten/erna",{"$nulls":8},"Kravet accepteras?"]
[null,"Stockholm"]
[]
[]
[]
[]
[null,"Övrig information"]
[null,"Ange övriga specifika förutsättningar, förhållanden eller önskemål som kan vara viktiga för leverantören och som inte framgår på annan plats i dokumentet."]
[null,"• Behovet för detta avrop är en (1) konsult.      \n• Leverantör ska endast lämna ett (1) avropssvar/konsultprofil.\n• Leverantör som vid avropstillfället inte kan erbjuda konsult inom efterfrågad roll är skyldig att svara att de inte kan leverera tjänsten.\n• Anbudsgivaren ska i anbudet ange önskat timpris.\n• Arbetsförmedlingen kommer att utvärdera avropssvaren för att hitta det/de avropssvar som bäst uppfyller det efterfrågade behovet.\n• Referenser kommer ev. att begäras om intervju blir aktuell.\n• Frågor angående avropet ställs i Tendsign.\n• Anbuden ska vara på svenska.\n• Angivet antal timmar är ungefärligt beräknade på den totala avtalsperioden inklusive option.\n• OBS: Tänk på att lämna så kortfattade och kärnfulla beskrivningar av kravuppfyllnad som möjligt i avropssvaret. Hänvisa annars hellre till bifogat CV. Längre beskrivningar premieras inte. \n• Erbjuden konsult bör vara tillgänglig med 100% omfattning.\n• Startdatum är preliminärt.\n• I uppdraget ingår att säkerställa att kunskap och dokumentation, avseende konsultens uppdrag, kontinuerligt förs vidare till av Arbetsförmedlingen utsedda personer."]
[]
[{"$nulls":32},{"$f":"IF(R145<>\"Ja\",TRUE,FALSE)","v":true}]
[]
[]
[]
[null,"Leverantören har lämnat begärda prisuppgifter som gäller för offererade Tjänster enligt ställda ska krav och är införstådd med att samtliga lämnade uppgifter i avropssvaret är bindande."]
[]
[]
[null,"Bilagor från avropande organisation"]
[null,"Specificera ev bilagor som medföljer denna avropsförfrågan"]
[]
[]
[]
[]
[{"$nulls":31},{"$f":"IF(B158<>0,TRUE,FALSE)","v":true},{"$f":"IF(AND(AF154,R158<>\"Ja\"),TRUE,FALSE)","v":true}]
[{"$nulls":31},{"$f":"IF(B159<>0,TRUE,FALSE)","v":false},{"$f":"IF(AND(AF155,R159<>\"Ja\"),TRUE,FALSE)","v":false}]
[null,"Bilagor från Leverantören",{"$nulls":8},"Bilagor:",{"$nulls":20},{"$f":"IF(B160<>0,TRUE,FALSE)","v":false},{"$f":"IF(AND(AF156,R160<>\"Ja\"),TRUE,FALSE)","v":false}]
[null,"Ange ev. organisationens krav på bilagor från leverantören tex CV, intyg mm.",{"$nulls":8},"Kravuppfyllnad",{"$nulls":6},"Svar",{"$nulls":13},{"$f":"IF(B161<>0,TRUE,FALSE)","v":false},{"$f":"IF(AND(AF157,R161<>\"Ja\"),TRUE,FALSE)","v":false}]
[null,"CV för offererad konsult ska bifogas avropssvaret.",{"$nulls":8},"Bilagan medföljer anbudet",{"$nulls":20},{"$f":"IF(B162<>0,TRUE,FALSE)","v":false},{"$f":"IF(AND(AF158,R162<>\"Ja\"),TRUE,FALSE)","v":false}]
[{"$nulls":10},"Bilagan medföljer anbudet"]
[{"$nulls":10},"Bilagan medföljer anbudet"]
[{"$nulls":10},"Bilagan medföljer anbudet"]
[{"$nulls":10},"Bilagan medföljer anbudet"]
[]
[]
[{"$nulls":10},"Underskrift"]
[null,"Ange om leverantören ska underteckna avropssvaret (Ja/Nej)",{"$nulls":6},"Nej",null,"Om avropande organisation så begär, scannas lämpligen undertecknad sida in och bifogas elektroniskt som en pdf-fil."]
[{"$nulls":10},{"$f":"\"Leverantören intygar att avropssvaret är giltigt minst den tid som avropande organisation angett ovan. \"&CHAR(10)&\"(\"&TEXT(#REF!,\"ÅÅÅÅ-MM-DD\")&\")\"","v":{"$error":"#REF!"}}]
[null,"Låsning av avropsblanketten",{"$nulls":8},"Ort, datum"]
[null,"Detta görs genom att klicka på knappen \"Lås avropsblanketten\" nedan samt ange ett lösenord. Om det visat sig att man glömt fylla i någon uppgift så kan det vara bra att kunna låsa upp blanketten. Klicka då på knappen \"Lås upp avropsblanketten\" nedan. Observera att lösenordet inte kan bestå av enbart siffror."]
[]
[{"$nulls":10},"Namn, befattning (behörig företrädare för leverantören)"]
[]
[]
[]
[{"$nulls":14},{"$f":"IF(LarmStatus,\"Minst ett av de obligatoriska kraven är inte ifyllda eller besvarde med Nej\",\"\")","v":{"$error":"#REF!"}}]

{"sheet":"Information","index":2,"n_rows":46,"n_cols":1,"rows_kept":46}
[]
[]
["Beskrivning Nivå 2-5"]
["I detta ramavtal och vid kommande avrop används en modell för definition av olika kompetensnivåer för konsulter som utför tjänsterna. SIC:s syfte med denna kompetensnivåmodell för konsulter är att underlätta klassificering av kompetensen genom att använda enhetliga principer och begrepp. En utbredd tillämpning av denna modell inom offentlig förvaltning borgar för en enklare och effektivare dialog internt hos avropande myndighet och på marknaden"]
[]
["Kompetensklassningen används vid:"]
["* utvärdering av kompetensnivåer"]
["* prissättning vid leverans av konsulttjänster"]
["* uppföljning av prestation vid leverans av konsulttjänster"]
["Nivåbeskrivningarna är profilbeskrivningar på en övergripande nivå. Vid klassning av en konsults kompetens inom aktuellt kompetensområde ska den kompetensnivå som passar bäst väljas (se nedan). Erfarenhet i antal år innebär antal arbetade år inom rollen/kompetensen – det vill säga inte nödvändigtvis i antal år som konsult i aktuell roll."]
[]
["Observera!"]
["I detta avtal utgår kompetensnivå 1 helt då den nivån ej"]
["efterfrågas av statliga myndigheter inom området IT- konsulttjänster, Resurskonsulter. Beskrivningen av"]
["kompetensnivå 1 finns med här för att ge bilden av SIC:s"]
["hela kompetensnivåmodell."]
[]
["Nivå 1"]
["Kunskap – nyss genomförd utbildning inom aktuell roll"]
["Erfarenhet – kortare arbetserfarenhet eller ej vana som konsult"]
["Ledning – kräver arbetsledning"]
["Självständighet – kan självständigt utföra enklare uppgifter"]
[]
["Nivå 2"]
["Kunskap – har utbildning inom aktuellt område/roll, viss svårighetsgrad"]
["Erfarenhet – arbetat 1-3 år inom aktuellt område/roll, har deltagit i eller utfört ett flertal liknande uppdrag"]
["Ledning – kräver arbetsledning"]
["Självständighet – kan självständigt utföra avgränsade arbetsuppgifter"]
[]
["Nivå 3"]
["Kunskap – hög kompetens inom aktuellt område/roll"]
["Erfarenhet – arbetat 4-8 år inom aktuellt område/roll, är förebild för andra konsulter på lägre nivå."]
["Ledning – tar ansvar för delområde, kan leda en mindre grupp"]
["Självständighet – kan arbeta självständigt"]
[]
["Nivå 4"]
["Kunskap – hög generalistkompetens, eller mycket hög kompetens inom aktuellt område/roll"]
["Erfarenhet – har deltagit i stora uppdrag inom aktuellt område och genomfört uppdrag med mycket hög kvalitet. Nivån uppnås normalt tidigast efter 9-12 års arbete inom aktuellt område/roll."]
["Ledning – tar huvudansvar för ledning av större grupp"]
["Självständighet – mycket stor"]
[]
["Nivå 5"]
["Kunskap – kompetens av högsta rang inom aktuellt område/roll, uppfattas som expert/guru på marknaden."]
["Erfarenhet – (som 4)"]
["Ledning – har stor vana och erfarenhet av att verka i ledande befattning"]
["Självständighet – mycket stor"]

{"sheet":"Admin","index":3,"n_rows":68,"n_cols":22,"rows_kept":68,"hidden":true,"merged":[[46,12,46,19]]}
[null,"UKey","Kammarkollegiet",null,null,"TblRegion","TblRegion",{"$nulls":5},"Leverantör","Avtalsnummer","Organisations-nummer","Adress","Postnummer","Postadress","Kontaktperson ","Telefon","E-post kontaktperson","Ramavtal Anbudsområde"]
[null,"pkey","Kammarkollegiet",null,null,"Region","Välj Region",null,null," "]
[null,"Wkey","Kammarkollegiet","RGB",null,"Region 1","Norra regionen och Uppsala-Örebro (Omfattar: Norrbottens län, Jämtlands län, Västernorrlands län, Västerbottens län, Dalarnas län, Gävleborgs län, Uppsala län, Södermanlands län, Värmlands län, Västmanlands län och Örebro län)",null,null," "]
[null,"YColor"," ","255, 255, 153",null,"Region 2","Stockholms län, Gotlands län",null,null," "]
[{"$nulls":3},"204, 255, 255",null,"Region 3","Region Västra (Omfattar: Västra Götalands län och Hallands län)",null,null," "]
[{"$nulls":3},"150, 150, 150",null,"Region 4","Region Sydöstra (Omfattar: Jönköpings län, Kalmar län och Östergötlands län)",null,null," "]
[{"$nulls":3},"204, 255, 204",null,"Region 5","Region Södra (Omfattar: Blekinge län, Skåne län och Kronobergs län)",null,null," "]
[{"$nulls":3},"250, 191, 143",{"$nulls":5}," "]
[{"$nulls":9}," "]
{"$rows_empty":15}
[{"$nulls":5},"Vald produkt/tjänst","ListvalNrProduktTjänst","Val Kompetensområde","Val Kompetensområde","KompValNr","Formel i Exempelroll- dataveri- fieringen",null,null,"TblSkaKrav",null,"TblNivå",{"$nulls":4},"Ovanstående rangordning gäller för avrop som vid avropstillfället uppgår"]
[{"$nulls":4},"Tjänst nr","Välj Tjänst","Välj Tjänst",{"$nulls":4},"(Välj1)",null,"Välj Ska-krav","(Välj2)",{"$nulls":5},"till maximalt 160 timmar. För avrop som överstiger 160 timmar ska dessa göras via en förnyad konkurrensutsättning till samtliga ramavtalsleverantörer inom aktuellt område."]
[{"$nulls":4},"01.",{"$f":"'2 Specifikation'!C48","v":"Utvecklare Fullstack med tyngd på backend och goda kunskaper på frontend"},{"$f":"IF(F27=\"Välj Exempelroll\",\"\",IF(F27=0,\"\",E27&\" \"&F27))","v":"01. Utvecklare Fullstack med tyngd på backend och goda kunskaper på frontend"},{"$f":"'2 Specifikation'!#REF!","v":{"$error":"#REF!"}},{"$f":"'2 Specifikation'!#REF!","v":{"$error":"#REF!"}},{"$f":"IF(H27=Välj4,0,MATCH(H27,$M$48:$T$48,0))","v":{"$error":"#REF!"}},"=INDEX(Exempelrollval;;KompValNr1)",null,null,"Avtalsvillkor",null,"Nivå 1"]
[{"$nulls":4},"02.",{"$f":"'2 Specifikation'!#REF!","v":{"$error":"#REF!"}},{"$f":"IF(F28=\"Välj Exempelroll\",\"\",IF(F28=0,\"\",E28&\" \"&F28))","v":{"$error":"#REF!"}},{"$f":"'2 Specifikation'!#REF!","v":{"$error":"#REF!"}},{"$nulls":5},"Faktureringsvillkor och rutiner",null,"Nivå 2"]
[{"$nulls":4},"03.",{"$f":"'2 Specifikation'!C52","v":"Välj Exempelroll"},{"$f":"IF(F29=\"Välj Exempelroll\",\"\",IF(F29=0,\"\",E29&\" \"&F29))","v":""},{"$f":"'2 Specifikation'!#REF!","v":{"$error":"#REF!"}},{"$nulls":5},"Kompetens och kompetensnivåer",null,"Nivå 3"]
[{"$nulls":4},"04.",{"$f":"'2 Specifikation'!C56","v":"Välj Exempelroll"},{"$f":"IF(F30=\"Välj Exempelroll\",\"\",IF(F30=0,\"\",E30&\" \"&F30))","v":""},{"$f":"'2 Specifikation'!#REF!","v":{"$error":"#REF!"}},{"$nulls":5},"Priser",null,"Nivå 4",{"$nulls":4},"Västra ????"]
[{"$nulls":4},"05.",{"$f":"'2 Specifikation'!C60","v":"Välj Exempelroll"},{"$f":"IF(F31=\"Välj Exempelroll\",\"\",IF(F31=0,\"\",E31&\" \"&F31))","v":""},{"$f":"'2 Specifikation'!#REF!","v":{"$error":"#REF!"}},{"$nulls":5},"Språk",null,"Nivå 5"]
[{"$nulls":6},"Gäller alla tjänster i detta avrop",{"$nulls":6},"Säkerhetsskyddsavtal och registerkontroll konsult"]
[{"$nulls":13},"Tider och genomförande"]
[]
[{"$nulls":13},"Tilldelningskriterier"]
[{"$nulls":13},"Välj tilldelningskriterie","(Välj3)"]
[]
[{"$nulls":13},"Bör-Krav (se utvärdering bör-krav)"]
{"$rows_empty":8}
[{"$nulls":12},"Exempelrollval"]
[{"$nulls":6},"TblKompetensområde",null,"TblAnbudsområde",{"$nulls":3},{"$f":"G50","v":"Användbarhet"},{"$f":"G51","v":"Verksamhetsutveckling och krav"},{"$f":"G52","v":"IT-Arkitekt"},{"$f":"G53","v":"Systemutveckling och Systemförvaltning"},{"$f":"G54","v":"Test och testledning"},{"$f":"G55","v":"Ledning och styrning"},{"$f":"G56","v":"IT-Säkerhet"},{"$f":"G57","v":"Annan enligt specifikation"}]
[{"$nulls":5},"(Välj4)","Välj Kompetensområde","(Välj6)","Välj Kompetensområde",{"$nulls":3},"Välj Exempelroll","Välj Exempelroll","Välj Exempelroll","Välj Exempelroll","Välj Exempelroll","Välj Exempelroll","Välj Exempelroll","Annan enligt specifikation"]
[{"$nulls":6},"Användbarhet",null,"Användbarhet",{"$nulls":3},"Användbarhetsarkitekt","Kravhantering och Kravanalys","Infrastrukturarkitekt","Databasdesigner- administratör","Prestandatest","Förvaltningsledare","IT-Säkerhetsstrateg/IT-Säkerhetsanalytiker"]
[{"$nulls":6},"Verksamhetsutveckling och krav",null,"Verksamhetsutveckling och krav",{"$nulls":3},"Grafisk formgivare","Metodstöd","Lösningsarkitekt","Konfigurations- och versionshantering","Testare","IT-Controller","IT-Säkerhetstekniker"]
[{"$nulls":6},"IT-Arkitekt",null,"IT-Arkitekt",{"$nulls":3},"Teknisk skribent","Modelleringsledare","Mjukvaruarkitekt","Systemintegratör","Testautomatiserare","Projektledare"]
[{"$nulls":6},"Systemutveckling och Systemförvaltning",null,"Systemutveckling och Systemförvaltning",{"$nulls":3},"Testare av användbarhet och användargränssnitt","Verksamhetsanalytiker",null,"Systemutveckling","Testledare","Teknisk projektledare"]
[{"$nulls":6},"Test och testledning",null,"Test och testledning",{"$nulls":3},"Tillgänglighetsspecialist",{"$nulls":4},"Tjänsteansvarig"]
[{"$nulls":6},"Ledning och styrning",null,"Ledning och styrning"]
[{"$nulls":6},"IT-Säkerhet",null,"IT-Säkerhet"]
[{"$nulls":6},"Annan enligt specifikation",null,"Annan enligt specifikation"]
[]
[{"$nulls":6},"TblExempelroller"]
[{"$nulls":5},"(Välj5)","Välj Exempelroll"]
[{"$nulls":6},"Användbarhetsarkitekt"]
[{"$nulls":6},"Grafisk formgivare"]
[{"$nulls":6},"Teknisk skribent"]
[{"$nulls":6},"Testare av användbarhet och användargränssnitt"]
[{"$nulls":6},"Tillgänglighetsspecialist"]
[{"$nulls":6},"Ledning och styrning"]
[{"$nulls":6},"IT-Säkerhet"]
[{"$nulls":6},"Annan enligt specifikation"]